{"text_format":"1","workbook":"xlsx","n_sheets":4,"sheets":["Produktionsanlæg","Distributionsanlæg","Fællesfunktionsanlæg","Drop downliste"],"not_rendered":{"charts":0,"images":0,"macros":1,"external_links":0,"defined_names":2,"comments":0,"pivot_tables":0},"unopened":[],"bounds":{"document_bytes":16777216,"sheet_cells":100000,"rows_first":2000,"rows_last":500,"rows_between":2000,"halvings":0,"cell_chars":16384,"cell_head_chars":4096},"cells_cut":0,"cells_raw":0,"read":"whole","date_system":"1900"}

{"sheet":"Produktionsanlæg","index":0,"n_rows":562,"n_cols":6,"rows_kept":562,"cut":false,"hidden":false,"merged":[[0,5,1,5],[0,0,1,0],[0,1,1,1],[0,2,1,2],[0,3,1,3],[0,4,1,4]]}
["Produktionsanlæg","Enhed","Standard-levetid","Samlet mængde per 31/12-2014","Samlet mængde per 31/12-2015","Bemærk-ninger"]
[]
["Renseanlæg 1"]
["Mindre renseanlæg"]
["Mindre renseanlæg < 5.000 PE uden mulighed for opdeling","PE",40,0]
["Renseanlæg >= 5.000 PE, Vandbehandling"]
["Indløb med riste, Konstruktioner","PE",60,37000,37000]
["Indløb med riste, Mek/EL","PE",20,37000,37000]
["Indløb med riste, SRO","PE",10,37000,37000]
["Sand- og fedtfang, Kontruktioner","PE",60,37000,37000]
["Sand- og fedtfang, Mek/EL","PE",20,37000,37000]
["Sand- og fedtfang, SRO","PE",10,37000,37000]
["Forklaring, Konstruktioner","PE",60,0,0]
["Forklaring, Mek/EL","PE",20,0,0]
["Forklaring, SRO","PE",10,0,0]
["Beluftningstanke, Konstruktioner","PE",60,37000,37000]
["Beluftningstanke, Mek/EL","PE",20,37000,37000]
["Beluftningstanke, SRO","PE",10,37000,37000]
["Efterklaringstanke, Konstruktioner","PE",60,37000,37000]
["Efterklaringstanke, Mek/El","PE",20,37000,37000]
["Efterklaringstanke, SRO","PE",10,37000,37000]
["Efterbehandlingsanlæg (sandfilter), Konstruktioner","PE",60,0,0]
["Efterbehandlingsanlæg (sandfilter), Mek/EL","PE",20,0,0]
["Efterbehandlingsanlæg (sandfilter), SRO","PE",10,0,0]
["Renseanlæg >= 5.000 PE, Slambehandling"]
["Forafvanding, slam, Konstruktion","PE",60,0,0]
["Forafvanding, slam, Mek/EL","PE",20,0,0]
["Forafvanding, slam, SRO","PE",10,0,0]
["Rådnetanke, slam, Konstruktioner","PE",60,0,0]
["Rådnetanke, slam, Mek/EL","PE",20,0,0]
["Rådnetanke, slam, SRO","PE",10,0,0]
["Gasdisponering, Konstruktioner","PE",60,0,0]
["Gasdisponering, Mek/EL","PE",20,0,0]
["Gasdisponering, SRO","PE",10,0,0]
["Gasdisponering - elproduktionsanlæg, Konstruktioner","PE",60,0,0]
["Gasdisponering - elproduktionsanlæg, Mek/EL","PE",20,0,0]
["Gasdisponering - elproduktionsanlæg, SRO","PE",10,0,0]
["Slutafvanding, slam - lavteknologisk (slambede), Konstruktioner","PE",60,0,0]
["Slutafvanding, slam - lavteknologisk (slambede), Mek/EL","PE",20,0,0]
["Slutafvanding, slam - lavteknologisk (slambede), SRO","PE",10,0,0]
["Slutafvanding, slam - højteknologisk (centrifuger), Konstruktioner","PE",60,37000,37000]
["Slutafvanding, slam - højteknologisk (centrifuger), Mek/El","PE",20,37000,37000]
["Slutafvanding, slam - højteknologisk (centrifuger), SRO","PE",10,37000,37000]
["Renseanlæg >= 5.000 PE, Slamdisponering"]
["Slutdisponering, slam - lavteknologisk (slammineralisering), Konstruktioner","PE",60,0,0]
["Slutdisponering, slam - lavteknologisk (slammineralisering), Mek/EL","PE",20,0,0]
["Slutdisponering, slam - lavteknologisk (slammineralisering), SRO","PE",10,0,0]
["Slutdisponering, slam - højteknologisk (slamtørring), Konstruktioner","PE",60,0,0]
["Slutdisponering, slam - højteknologisk (slamtørring), Mek/EL","PE",20,0,0]
["Slutdisponering, slam - højteknologisk (slamtørring), SRO","PE",10,0,0]
["Slutdisponering, slam - højteknologisk (slamtørring og -forbrænding), Konstruktioner","PE",60,0,0]
["Slutdisponering, slam - højteknologisk (slamtørring og -forbrænding), Mek/EL","PE",20,0,0]
["Slutdisponering, slam - højteknologisk (slamtørring og -forbrænding), SRO","PE",10,0,0]
["Renseanlæg 2"]
["Mindre renseanlæg"]
["Mindre renseanlæg < 5.000 PE uden mulighed for opdeling","PE",40,0,0]
["Renseanlæg >= 5.000 PE, Vandbehandling"]
["Indløb med riste, Konstruktioner","PE",60,11000,{"$f":"D58","v":11000}]
["Indløb med riste, Mek/EL","PE",20,11000,{"$f":"D59","v":11000}]
["Indløb med riste, SRO","PE",10,11000,11000]
["Sand- og fedtfang, Kontruktioner","PE",60,11000,11000]
["Sand- og fedtfang, Mek/EL","PE",20,11000,11000]
["Sand- og fedtfang, SRO","PE",10,11000,11000]
["Forklaring, Konstruktioner","PE",60,0,0]
["Forklaring, Mek/EL","PE",20,0,0]
["Forklaring, SRO","PE",10,0,0]
["Beluftningstanke, Konstruktioner","PE",60,11000,11000]
["Beluftningstanke, Mek/EL","PE",20,11000,11000]
["Beluftningstanke, SRO","PE",10,11000,11000]
["Efterklaringstanke, Konstruktioner","PE",60,11000,11000]
["Efterklaringstanke, Mek/El","PE",20,11000,11000]
["Efterklaringstanke, SRO","PE",10,11000,11000]
["Efterbehandlingsanlæg (sandfilter), Konstruktioner","PE",60,0,0]
["Efterbehandlingsanlæg (sandfilter), Mek/EL","PE",20,0,0]
["Efterbehandlingsanlæg (sandfilter), SRO","PE",10,0,0]
["Renseanlæg >= 5.000 PE, Slambehandling"]
["Forafvanding, slam, Konstruktion","PE",60,0,{"$f":"D77","v":0}]
["Forafvanding, slam, Mek/EL","PE",20,0,{"$f":"D78","v":0}]
["Forafvanding, slam, SRO","PE",10,0,0]
["Rådnetanke, slam, Konstruktioner","PE",60,0,0]
["Rådnetanke, slam, Mek/EL","PE",20,0,0]
["Rådnetanke, slam, SRO","PE",10,0,0]
["Gasdisponering, Konstruktioner","PE",60,0,0]
["Gasdisponering, Mek/EL","PE",20,0,0]
["Gasdisponering, SRO","PE",10,0,0]
["Gasdisponering - elproduktionsanlæg, Konstruktioner","PE",60,0,0]
["Gasdisponering - elproduktionsanlæg, Mek/EL","PE",20,0,0]
["Gasdisponering - elproduktionsanlæg, SRO","PE",10,0,0]
["Slutafvanding, slam - lavteknologisk (slambede), Konstruktioner","PE",60,0,0]
["Slutafvanding, slam - lavteknologisk (slambede), Mek/EL","PE",20,0,0]
["Slutafvanding, slam - lavteknologisk (slambede), SRO","PE",10,0,0]
["Slutafvanding, slam - højteknologisk (centrifuger), Konstruktioner","PE",60,11000,11000]
["Slutafvanding, slam - højteknologisk (centrifuger), Mek/El","PE",20,11000,11000]
["Slutafvanding, slam - højteknologisk (centrifuger), SRO","PE",10,11000,11000]
["Renseanlæg >= 5.000 PE, Slamdisponering"]
["Slutdisponering, slam - lavteknologisk (slammineralisering), Konstruktioner","PE",60,0,{"$f":"D96","v":0}]
["Slutdisponering, slam - lavteknologisk (slammineralisering), Mek/EL","PE",20,0,{"$f":"D97","v":0}]
["Slutdisponering, slam - lavteknologisk (slammineralisering), SRO","PE",10,0,0]
["Slutdisponering, slam - højteknologisk (slamtørring), Konstruktioner","PE",60,0,0]
["Slutdisponering, slam - højteknologisk (slamtørring), Mek/EL","PE",20,0,0]
["Slutdisponering, slam - højteknologisk (slamtørring), SRO","PE",10,0,0]
["Slutdisponering, slam - højteknologisk (slamtørring og -forbrænding), Konstruktioner","PE",60,0,0]
["Slutdisponering, slam - højteknologisk (slamtørring og -forbrænding), Mek/EL","PE",20,0,0]
["Slutdisponering, slam - højteknologisk (slamtørring og -forbrænding), SRO","PE",10,0,0]
["Renseanlæg 3"]
["Mindre renseanlæg"]
["Mindre renseanlæg < 5.000 PE uden mulighed for opdeling","PE",40,0,0]
["Renseanlæg >= 5.000 PE, Vandbehandling"]
["Indløb med riste, Konstruktioner","PE",60,14000,{"$f":"D109","v":14000}]
["Indløb med riste, Mek/EL","PE",20,14000,{"$f":"D110","v":14000}]
["Indløb med riste, SRO","PE",10,14000,14000]
["Sand- og fedtfang, Kontruktioner","PE",60,14000,14000]
["Sand- og fedtfang, Mek/EL","PE",20,14000,14000]
["Sand- og fedtfang, SRO","PE",10,14000,14000]
["Forklaring, Konstruktioner","PE",60,0,0]
["Forklaring, Mek/EL","PE",20,0,0]
["Forklaring, SRO","PE",10,0,0]
["Beluftningstanke, Konstruktioner","PE",60,14000,14000]
["Beluftningstanke, Mek/EL","PE",20,14000,14000]
["Beluftningstanke, SRO","PE",10,14000,14000]
["Efterklaringstanke, Konstruktioner","PE",60,14000,14000]
["Efterklaringstanke, Mek/El","PE",20,14000,14000]
["Efterklaringstanke, SRO","PE",10,14000,14000]
["Efterbehandlingsanlæg (sandfilter), Konstruktioner","PE",60,0,0]
["Efterbehandlingsanlæg (sandfilter), Mek/EL","PE",20,0,0]
["Efterbehandlingsanlæg (sandfilter), SRO","PE",10,0,0]
["Renseanlæg >= 5.000 PE, Slambehandling"]
["Forafvanding, slam, Konstruktion","PE",60,0,{"$f":"D128","v":0}]
["Forafvanding, slam, Mek/EL","PE",20,0,{"$f":"D129","v":0}]
["Forafvanding, slam, SRO","PE",10,0,0]
["Rådnetanke, slam, Konstruktioner","PE",60,0,0]
["Rådnetanke, slam, Mek/EL","PE",20,0,0]
["Rådnetanke, slam, SRO","PE",10,0,0]
["Gasdisponering, Konstruktioner","PE",60,0,0]
["Gasdisponering, Mek/EL","PE",20,0,0]
["Gasdisponering, SRO","PE",10,0,0]
["Gasdisponering - elproduktionsanlæg, Konstruktioner","PE",60,0,0]
["Gasdisponering - elproduktionsanlæg, Mek/EL","PE",20,0,0]
["Gasdisponering - elproduktionsanlæg, SRO","PE",10,0,0]
["Slutafvanding, slam - lavteknologisk (slambede), Konstruktioner","PE",60,0,0]
["Slutafvanding, slam - lavteknologisk (slambede), Mek/EL","PE",20,0,0]
["Slutafvanding, slam - lavteknologisk (slambede), SRO","PE",10,0,0]
["Slutafvanding, slam - højteknologisk (centrifuger), Konstruktioner","PE",60,0,0]
["Slutafvanding, slam - højteknologisk (centrifuger), Mek/El","PE",20,0,0]
["Slutafvanding, slam - højteknologisk (centrifuger), SRO","PE",10,0,0]
["Renseanlæg >= 5.000 PE, Slamdisponering"]
["Slutdisponering, slam - lavteknologisk (slammineralisering), Konstruktioner","PE",60,0,{"$f":"D147","v":0}]
["Slutdisponering, slam - lavteknologisk (slammineralisering), Mek/EL","PE",20,0,{"$f":"D148","v":0}]
["Slutdisponering, slam - lavteknologisk (slammineralisering), SRO","PE",10,0,0]
["Slutdisponering, slam - højteknologisk (slamtørring), Konstruktioner","PE",60,0,0]
["Slutdisponering, slam - højteknologisk (slamtørring), Mek/EL","PE",20,0,0]
["Slutdisponering, slam - højteknologisk (slamtørring), SRO","PE",10,0,0]
["Slutdisponering, slam - højteknologisk (slamtørring og -forbrænding), Konstruktioner","PE",60,0,0]
["Slutdisponering, slam - højteknologisk (slamtørring og -forbrænding), Mek/EL","PE",20,0,0]
["Slutdisponering, slam - højteknologisk (slamtørring og -forbrænding), SRO","PE",10,0,0]
["Renseanlæg 4"]
["Mindre renseanlæg"]
["Mindre renseanlæg < 5.000 PE uden mulighed for opdeling","PE",40,0,0]
["Renseanlæg >= 5.000 PE, Vandbehandling"]
["Indløb med riste, Konstruktioner","PE",60,10000,{"$f":"D160","v":10000}]
["Indløb med riste, Mek/EL","PE",20,10000,0]
["Indløb med riste, SRO","PE",10,10000,0]
["Sand- og fedtfang, Kontruktioner","PE",60,10000,{"$f":"D163","v":10000}]
["Sand- og fedtfang, Mek/EL","PE",20,10000,0]
["Sand- og fedtfang, SRO","PE",10,10000,0]
["Forklaring, Konstruktioner","PE",60,0,0]
["Forklaring, Mek/EL","PE",20,0,0]
["Forklaring, SRO","PE",10,0,0]
["Beluftningstanke, Konstruktioner","PE",60,10000,{"$f":"D169","v":10000}]
["Beluftningstanke, Mek/EL","PE",20,10000,0]
["Beluftningstanke, SRO","PE",10,10000,0]
["Efterklaringstanke, Konstruktioner","PE",60,10000,{"$f":"D172","v":10000}]
["Efterklaringstanke, Mek/El","PE",20,10000,0]
["Efterklaringstanke, SRO","PE",10,10000,0]
["Efterbehandlingsanlæg (sandfilter), Konstruktioner","PE",60,0,0]
["Efterbehandlingsanlæg (sandfilter), Mek/EL","PE",20,0,0]
["Efterbehandlingsanlæg (sandfilter), SRO","PE",10,0,0]
["Renseanlæg >= 5.000 PE, Slambehandling"]
["Forafvanding, slam, Konstruktion","PE",60,0,{"$f":"D179","v":0}]
["Forafvanding, slam, Mek/EL","PE",20,0,{"$f":"D180","v":0}]
["Forafvanding, slam, SRO","PE",10,0,0]
["Rådnetanke, slam, Konstruktioner","PE",60,0,0]
["Rådnetanke, slam, Mek/EL","PE",20,0,0]
["Rådnetanke, slam, SRO","PE",10,0,0]
["Gasdisponering, Konstruktioner","PE",60,0,0]
["Gasdisponering, Mek/EL","PE",20,0,0]
["Gasdisponering, SRO","PE",10,0,0]
["Gasdisponering - elproduktionsanlæg, Konstruktioner","PE",60,0,0]
["Gasdisponering - elproduktionsanlæg, Mek/EL","PE",20,0,0]
["Gasdisponering - elproduktionsanlæg, SRO","PE",10,0,0]
["Slutafvanding, slam - lavteknologisk (slambede), Konstruktioner","PE",60,0,0]
["Slutafvanding, slam - lavteknologisk (slambede), Mek/EL","PE",20,0,0]
["Slutafvanding, slam - lavteknologisk (slambede), SRO","PE",10,0,0]
["Slutafvanding, slam - højteknologisk (centrifuger), Konstruktioner","PE",60,0,0]
["Slutafvanding, slam - højteknologisk (centrifuger), Mek/El","PE",20,0,0]
["Slutafvanding, slam - højteknologisk (centrifuger), SRO","PE",10,0,0]
["Renseanlæg >= 5.000 PE, Slamdisponering"]
["Slutdisponering, slam - lavteknologisk (slammineralisering), Konstruktioner","PE",60,0,{"$f":"D198","v":0}]
["Slutdisponering, slam - lavteknologisk (slammineralisering), Mek/EL","PE",20,0,{"$f":"D199","v":0}]
["Slutdisponering, slam - lavteknologisk (slammineralisering), SRO","PE",10,0,0]
["Slutdisponering, slam - højteknologisk (slamtørring), Konstruktioner","PE",60,0,0]
["Slutdisponering, slam - højteknologisk (slamtørring), Mek/EL","PE",20,0,0]
["Slutdisponering, slam - højteknologisk (slamtørring), SRO","PE",10,0,0]
["Slutdisponering, slam - højteknologisk (slamtørring og -forbrænding), Konstruktioner","PE",60,0,0]
["Slutdisponering, slam - højteknologisk (slamtørring og -forbrænding), Mek/EL","PE",20,0,0]
["Slutdisponering, slam - højteknologisk (slamtørring og -forbrænding), SRO","PE",10,0,0]
["Renseanlæg 5"]
["Mindre renseanlæg"]
["Mindre renseanlæg < 5.000 PE uden mulighed for opdeling","PE",40,1200,1200,"MBK anlæg"]
["Renseanlæg >= 5.000 PE, Vandbehandling"]
["Indløb med riste, Konstruktioner","PE",60,0,{"$f":"D211","v":0}]
["Indløb med riste, Mek/EL","PE",20,0,{"$f":"D212","v":0}]
["Indløb med riste, SRO","PE",10,0,0]
["Sand- og fedtfang, Kontruktioner","PE",60,0,0]
["Sand- og fedtfang, Mek/EL","PE",20,0,0]
["Sand- og fedtfang, SRO","PE",10,0,0]
["Forklaring, Konstruktioner","PE",60,0,0]
["Forklaring, Mek/EL","PE",20,0,0]
["Forklaring, SRO","PE",10,0,0]
["Beluftningstanke, Konstruktioner","PE",60,0,0]
["Beluftningstanke, Mek/EL","PE",20,0,0]
["Beluftningstanke, SRO","PE",10,0,0]
["Efterklaringstanke, Konstruktioner","PE",60,0,0]
["Efterklaringstanke, Mek/El","PE",20,0,0]
["Efterklaringstanke, SRO","PE",10,0,0]
["Efterbehandlingsanlæg (sandfilter), Konstruktioner","PE",60,0,0]
["Efterbehandlingsanlæg (sandfilter), Mek/EL","PE",20,0,0]
["Efterbehandlingsanlæg (sandfilter), SRO","PE",10,0,0]
["Renseanlæg >= 5.000 PE, Slambehandling"]
["Forafvanding, slam, Konstruktion","PE",60,0,{"$f":"D230","v":0}]
["Forafvanding, slam, Mek/EL","PE",20,0,{"$f":"D231","v":0}]
["Forafvanding, slam, SRO","PE",10,0,0]
["Rådnetanke, slam, Konstruktioner","PE",60,0,0]
["Rådnetanke, slam, Mek/EL","PE",20,0,0]
["Rådnetanke, slam, SRO","PE",10,0,0]
["Gasdisponering, Konstruktioner","PE",60,0,0]
["Gasdisponering, Mek/EL","PE",20,0,0]
["Gasdisponering, SRO","PE",10,0,0]
["Gasdisponering - elproduktionsanlæg, Konstruktioner","PE",60,0,0]
["Gasdisponering - elproduktionsanlæg, Mek/EL","PE",20,0,0]
["Gasdisponering - elproduktionsanlæg, SRO","PE",10,0,0]
["Slutafvanding, slam - lavteknologisk (slambede), Konstruktioner","PE",60,0,0]
["Slutafvanding, slam - lavteknologisk (slambede), Mek/EL","PE",20,0,0]
["Slutafvanding, slam - lavteknologisk (slambede), SRO","PE",10,0,0]
["Slutafvanding, slam - højteknologisk (centrifuger), Konstruktioner","PE",60,0,0]
["Slutafvanding, slam - højteknologisk (centrifuger), Mek/El","PE",20,0,0]
["Slutafvanding, slam - højteknologisk (centrifuger), SRO","PE",10,0,0]
["Renseanlæg >= 5.000 PE, Slamdisponering"]
["Slutdisponering, slam - lavteknologisk (slammineralisering), Konstruktioner","PE",60,0,{"$f":"D249","v":0}]
["Slutdisponering, slam - lavteknologisk (slammineralisering), Mek/EL","PE",20,0,{"$f":"D250","v":0}]
["Slutdisponering, slam - lavteknologisk (slammineralisering), SRO","PE",10,0,0]
["Slutdisponering, slam - højteknologisk (slamtørring), Konstruktioner","PE",60,0,0]
["Slutdisponering, slam - højteknologisk (slamtørring), Mek/EL","PE",20,0,0]
["Slutdisponering, slam - højteknologisk (slamtørring), SRO","PE",10,0,0]
["Slutdisponering, slam - højteknologisk (slamtørring og -forbrænding), Konstruktioner","PE",60,0,0]
["Slutdisponering, slam - højteknologisk (slamtørring og -forbrænding), Mek/EL","PE",20,0,0]
["Slutdisponering, slam - højteknologisk (slamtørring og -forbrænding), SRO","PE",10,0,0]
["Renseanlæg 6"]
["Mindre renseanlæg"]
["Mindre renseanlæg < 5.000 PE uden mulighed for opdeling","PE",40,0]
["Renseanlæg >= 5.000 PE, Vandbehandling"]
["Indløb med riste, Konstruktioner","PE",60,0]
["Indløb med riste, Mek/EL","PE",20,0]
["Indløb med riste, SRO","PE",10,0]
["Sand- og fedtfang, Kontruktioner","PE",60,0]
["Sand- og fedtfang, Mek/EL","PE",20,0]
["Sand- og fedtfang, SRO","PE",10,0]
["Forklaring, Konstruktioner","PE",60,0]
["Forklaring, Mek/EL","PE",20,0]
["Forklaring, SRO","PE",10,0]
["Beluftningstanke, Konstruktioner","PE",60,0]
["Beluftningstanke, Mek/EL","PE",20,0]
["Beluftningstanke, SRO","PE",10,0]
["Efterklaringstanke, Konstruktioner","PE",60,0]
["Efterklaringstanke, Mek/El","PE",20,0]
["Efterklaringstanke, SRO","PE",10,0]
["Efterbehandlingsanlæg (sandfilter), Konstruktioner","PE",60,0]
["Efterbehandlingsanlæg (sandfilter), Mek/EL","PE",20,0]
["Efterbehandlingsanlæg (sandfilter), SRO","PE",10,0]
["Renseanlæg >= 5.000 PE, Slambehandling"]
["Forafvanding, slam, Konstruktion","PE",60,0]
["Forafvanding, slam, Mek/EL","PE",20,0]
["Forafvanding, slam, SRO","PE",10,0]
["Rådnetanke, slam, Konstruktioner","PE",60,0]
["Rådnetanke, slam, Mek/EL","PE",20,0]
["Rådnetanke, slam, SRO","PE",10,0]
["Gasdisponering, Konstruktioner","PE",60,0]
["Gasdisponering, Mek/EL","PE",20,0]
["Gasdisponering, SRO","PE",10,0]
["Gasdisponering - elproduktionsanlæg, Konstruktioner","PE",60,0]
["Gasdisponering - elproduktionsanlæg, Mek/EL","PE",20,0]
["Gasdisponering - elproduktionsanlæg, SRO","PE",10,0]
["Slutafvanding, slam - lavteknologisk (slambede), Konstruktioner","PE",60,0]
["Slutafvanding, slam - lavteknologisk (slambede), Mek/EL","PE",20,0]
["Slutafvanding, slam - lavteknologisk (slambede), SRO","PE",10,0]
["Slutafvanding, slam - højteknologisk (centrifuger), Konstruktioner","PE",60,0]
["Slutafvanding, slam - højteknologisk (centrifuger), Mek/El","PE",20,0]
["Slutafvanding, slam - højteknologisk (centrifuger), SRO","PE",10,0]
["Renseanlæg >= 5.000 PE, Slamdisponering"]
["Slutdisponering, slam - lavteknologisk (slammineralisering), Konstruktioner","PE",60,0]
["Slutdisponering, slam - lavteknologisk (slammineralisering), Mek/EL","PE",20,0]
["Slutdisponering, slam - lavteknologisk (slammineralisering), SRO","PE",10,0]
["Slutdisponering, slam - højteknologisk (slamtørring), Konstruktioner","PE",60,0]
["Slutdisponering, slam - højteknologisk (slamtørring), Mek/EL","PE",20,0]
["Slutdisponering, slam - højteknologisk (slamtørring), SRO","PE",10,0]
["Slutdisponering, slam - højteknologisk (slamtørring og -forbrænding), Konstruktioner","PE",60,0]
["Slutdisponering, slam - højteknologisk (slamtørring og -forbrænding), Mek/EL","PE",20,0]
["Slutdisponering, slam - højteknologisk (slamtørring og -forbrænding), SRO","PE",10,0]
["Renseanlæg 7"]
["Mindre renseanlæg"]
["Mindre renseanlæg < 5.000 PE uden mulighed for opdeling","PE",40,0]
["Renseanlæg >= 5.000 PE, Vandbehandling"]
["Indløb med riste, Konstruktioner","PE",60,0]
["Indløb med riste, Mek/EL","PE",20,0]
["Indløb med riste, SRO","PE",10,0]
["Sand- og fedtfang, Kontruktioner","PE",60,0]
["Sand- og fedtfang, Mek/EL","PE",20,0]
["Sand- og fedtfang, SRO","PE",10,0]
["Forklaring, Konstruktioner","PE",60,0]
["Forklaring, Mek/EL","PE",20,0]
["Forklaring, SRO","PE",10,0]
["Beluftningstanke, Konstruktioner","PE",60,0]
["Beluftningstanke, Mek/EL","PE",20,0]
["Beluftningstanke, SRO","PE",10,0]
["Efterklaringstanke, Konstruktioner","PE",60,0]
["Efterklaringstanke, Mek/El","PE",20,0]
["Efterklaringstanke, SRO","PE",10,0]
["Efterbehandlingsanlæg (sandfilter), Konstruktioner","PE",60,0]
["Efterbehandlingsanlæg (sandfilter), Mek/EL","PE",20,0]
["Efterbehandlingsanlæg (sandfilter), SRO","PE",10,0]
["Renseanlæg >= 5.000 PE, Slambehandling"]
["Forafvanding, slam, Konstruktion","PE",60,0]
["Forafvanding, slam, Mek/EL","PE",20,0]
["Forafvanding, slam, SRO","PE",10,0]
["Rådnetanke, slam, Konstruktioner","PE",60,0]
["Rådnetanke, slam, Mek/EL","PE",20,0]
["Rådnetanke, slam, SRO","PE",10,0]
["Gasdisponering, Konstruktioner","PE",60,0]
["Gasdisponering, Mek/EL","PE",20,0]
["Gasdisponering, SRO","PE",10,0]
["Gasdisponering - elproduktionsanlæg, Konstruktioner","PE",60,0]
["Gasdisponering - elproduktionsanlæg, Mek/EL","PE",20,0]
["Gasdisponering - elproduktionsanlæg, SRO","PE",10,0]
["Slutafvanding, slam - lavteknologisk (slambede), Konstruktioner","PE",60,0]
["Slutafvanding, slam - lavteknologisk (slambede), Mek/EL","PE",20,0]
["Slutafvanding, slam - lavteknologisk (slambede), SRO","PE",10,0]
["Slutafvanding, slam - højteknologisk (centrifuger), Konstruktioner","PE",60,0]
["Slutafvanding, slam - højteknologisk (centrifuger), Mek/El","PE",20,0]
["Slutafvanding, slam - højteknologisk (centrifuger), SRO","PE",10,0]
["Renseanlæg >= 5.000 PE, Slamdisponering"]
["Slutdisponering, slam - lavteknologisk (slammineralisering), Konstruktioner","PE",60,0]
["Slutdisponering, slam - lavteknologisk (slammineralisering), Mek/EL","PE",20,0]
["Slutdisponering, slam - lavteknologisk (slammineralisering), SRO","PE",10,0]
["Slutdisponering, slam - højteknologisk (slamtørring), Konstruktioner","PE",60,0]
["Slutdisponering, slam - højteknologisk (slamtørring), Mek/EL","PE",20,0]
["Slutdisponering, slam - højteknologisk (slamtørring), SRO","PE",10,0]
["Slutdisponering, slam - højteknologisk (slamtørring og -forbrænding), Konstruktioner","PE",60,0]
["Slutdisponering, slam - højteknologisk (slamtørring og -forbrænding), Mek/EL","PE",20,0]
["Slutdisponering, slam - højteknologisk (slamtørring og -forbrænding), SRO","PE",10,0]
["Renseanlæg 8"]
["Mindre renseanlæg"]
["Mindre renseanlæg < 5.000 PE uden mulighed for opdeling","PE",40,0]
["Renseanlæg >= 5.000 PE, Vandbehandling"]
["Indløb med riste, Konstruktioner","PE",60,0]
["Indløb med riste, Mek/EL","PE",20,0]
["Indløb med riste, SRO","PE",10,0]
["Sand- og fedtfang, Kontruktioner","PE",60,0]
["Sand- og fedtfang, Mek/EL","PE",20,0]
["Sand- og fedtfang, SRO","PE",10,0]
["Forklaring, Konstruktioner","PE",60,0]
["Forklaring, Mek/EL","PE",20,0]
["Forklaring, SRO","PE",10,0]
["Beluftningstanke, Konstruktioner","PE",60,0]
["Beluftningstanke, Mek/EL","PE",20,0]
["Beluftningstanke, SRO","PE",10,0]
["Efterklaringstanke, Konstruktioner","PE",60,0]
["Efterklaringstanke, Mek/El","PE",20,0]
["Efterklaringstanke, SRO","PE",10,0]
["Efterbehandlingsanlæg (sandfilter), Konstruktioner","PE",60,0]
["Efterbehandlingsanlæg (sandfilter), Mek/EL","PE",20,0]
["Efterbehandlingsanlæg (sandfilter), SRO","PE",10,0]
["Renseanlæg >= 5.000 PE, Slambehandling"]
["Forafvanding, slam, Konstruktion","PE",60,0]
["Forafvanding, slam, Mek/EL","PE",20,0]
["Forafvanding, slam, SRO","PE",10,0]
["Rådnetanke, slam, Konstruktioner","PE",60,0]
["Rådnetanke, slam, Mek/EL","PE",20,0]
["Rådnetanke, slam, SRO","PE",10,0]
["Gasdisponering, Konstruktioner","PE",60,0]
["Gasdisponering, Mek/EL","PE",20,0]
["Gasdisponering, SRO","PE",10,0]
["Gasdisponering - elproduktionsanlæg, Konstruktioner","PE",60,0]
["Gasdisponering - elproduktionsanlæg, Mek/EL","PE",20,0]
["Gasdisponering - elproduktionsanlæg, SRO","PE",10,0]
["Slutafvanding, slam - lavteknologisk (slambede), Konstruktioner","PE",60,0]
["Slutafvanding, slam - lavteknologisk (slambede), Mek/EL","PE",20,0]
["Slutafvanding, slam - lavteknologisk (slambede), SRO","PE",10,0]
["Slutafvanding, slam - højteknologisk (centrifuger), Konstruktioner","PE",60,0]
["Slutafvanding, slam - højteknologisk (centrifuger), Mek/El","PE",20,0]
["Slutafvanding, slam - højteknologisk (centrifuger), SRO","PE",10,0]
["Renseanlæg >= 5.000 PE, Slamdisponering"]
["Slutdisponering, slam - lavteknologisk (slammineralisering), Konstruktioner","PE",60,0]
["Slutdisponering, slam - lavteknologisk (slammineralisering), Mek/EL","PE",20,0]
["Slutdisponering, slam - lavteknologisk (slammineralisering), SRO","PE",10,0]
["Slutdisponering, slam - højteknologisk (slamtørring), Konstruktioner","PE",60,0]
["Slutdisponering, slam - højteknologisk (slamtørring), Mek/EL","PE",20,0]
["Slutdisponering, slam - højteknologisk (slamtørring), SRO","PE",10,0]
["Slutdisponering, slam - højteknologisk (slamtørring og -forbrænding), Konstruktioner","PE",60,0]
["Slutdisponering, slam - højteknologisk (slamtørring og -forbrænding), Mek/EL","PE",20,0]
["Slutdisponering, slam - højteknologisk (slamtørring og -forbrænding), SRO","PE",10,0]
["Renseanlæg 9"]
["Mindre renseanlæg"]
["Mindre renseanlæg < 5.000 PE uden mulighed for opdeling","PE",40,0]
["Renseanlæg >= 5.000 PE, Vandbehandling"]
["Indløb med riste, Konstruktioner","PE",60,0]
["Indløb med riste, Mek/EL","PE",20,0]
["Indløb med riste, SRO","PE",10,0]
["Sand- og fedtfang, Kontruktioner","PE",60,0]
["Sand- og fedtfang, Mek/EL","PE",20,0]
["Sand- og fedtfang, SRO","PE",10,0]
["Forklaring, Konstruktioner","PE",60,0]
["Forklaring, Mek/EL","PE",20,0]
["Forklaring, SRO","PE",10,0]
["Beluftningstanke, Konstruktioner","PE",60,0]
["Beluftningstanke, Mek/EL","PE",20,0]
["Beluftningstanke, SRO","PE",10,0]
["Efterklaringstanke, Konstruktioner","PE",60,0]
["Efterklaringstanke, Mek/El","PE",20,0]
["Efterklaringstanke, SRO","PE",10,0]
["Efterbehandlingsanlæg (sandfilter), Konstruktioner","PE",60,0]
["Efterbehandlingsanlæg (sandfilter), Mek/EL","PE",20,0]
["Efterbehandlingsanlæg (sandfilter), SRO","PE",10,0]
["Renseanlæg >= 5.000 PE, Slambehandling"]
["Forafvanding, slam, Konstruktion","PE",60,0]
["Forafvanding, slam, Mek/EL","PE",20,0]
["Forafvanding, slam, SRO","PE",10,0]
["Rådnetanke, slam, Konstruktioner","PE",60,0]
["Rådnetanke, slam, Mek/EL","PE",20,0]
["Rådnetanke, slam, SRO","PE",10,0]
["Gasdisponering, Konstruktioner","PE",60,0]
["Gasdisponering, Mek/EL","PE",20,0]
["Gasdisponering, SRO","PE",10,0]
["Gasdisponering - elproduktionsanlæg, Konstruktioner","PE",60,0]
["Gasdisponering - elproduktionsanlæg, Mek/EL","PE",20,0]
["Gasdisponering - elproduktionsanlæg, SRO","PE",10,0]
["Slutafvanding, slam - lavteknologisk (slambede), Konstruktioner","PE",60,0]
["Slutafvanding, slam - lavteknologisk (slambede), Mek/EL","PE",20,0]
["Slutafvanding, slam - lavteknologisk (slambede), SRO","PE",10,0]
["Slutafvanding, slam - højteknologisk (centrifuger), Konstruktioner","PE",60,0]
["Slutafvanding, slam - højteknologisk (centrifuger), Mek/El","PE",20,0]
["Slutafvanding, slam - højteknologisk (centrifuger), SRO","PE",10,0]
["Renseanlæg >= 5.000 PE, Slamdisponering"]
["Slutdisponering, slam - lavteknologisk (slammineralisering), Konstruktioner","PE",60,0]
["Slutdisponering, slam - lavteknologisk (slammineralisering), Mek/EL","PE",20,0]
["Slutdisponering, slam - lavteknologisk (slammineralisering), SRO","PE",10,0]
["Slutdisponering, slam - højteknologisk (slamtørring), Konstruktioner","PE",60,0]
["Slutdisponering, slam - højteknologisk (slamtørring), Mek/EL","PE",20,0]
["Slutdisponering, slam - højteknologisk (slamtørring), SRO","PE",10,0]
["Slutdisponering, slam - højteknologisk (slamtørring og -forbrænding), Konstruktioner","PE",60,0]
["Slutdisponering, slam - højteknologisk (slamtørring og -forbrænding), Mek/EL","PE",20,0]
["Slutdisponering, slam - højteknologisk (slamtørring og -forbrænding), SRO","PE",10,0]
["Renseanlæg 10"]
["Mindre renseanlæg"]
["Mindre renseanlæg < 5.000 PE uden mulighed for opdeling","PE",40,0]
["Renseanlæg >= 5.000 PE, Vandbehandling"]
["Indløb med riste, Konstruktioner","PE",60,0]
["Indløb med riste, Mek/EL","PE",20,0]
["Indløb med riste, SRO","PE",10,0]
["Sand- og fedtfang, Kontruktioner","PE",60,0]
["Sand- og fedtfang, Mek/EL","PE",20,0]
["Sand- og fedtfang, SRO","PE",10,0]
["Forklaring, Konstruktioner","PE",60,0]
["Forklaring, Mek/EL","PE",20,0]
["Forklaring, SRO","PE",10,0]
["Beluftningstanke, Konstruktioner","PE",60,0]
["Beluftningstanke, Mek/EL","PE",20,0]
["Beluftningstanke, SRO","PE",10,0]
["Efterklaringstanke, Konstruktioner","PE",60,0]
["Efterklaringstanke, Mek/El","PE",20,0]
["Efterklaringstanke, SRO","PE",10,0]
["Efterbehandlingsanlæg (sandfilter), Konstruktioner","PE",60,0]
["Efterbehandlingsanlæg (sandfilter), Mek/EL","PE",20,0]
["Efterbehandlingsanlæg (sandfilter), SRO","PE",10,0]
["Renseanlæg >= 5.000 PE, Slambehandling"]
["Forafvanding, slam, Konstruktion","PE",60,0]
["Forafvanding, slam, Mek/EL","PE",20,0]
["Forafvanding, slam, SRO","PE",10,0]
["Rådnetanke, slam, Konstruktioner","PE",60,0]
["Rådnetanke, slam, Mek/EL","PE",20,0]
["Rådnetanke, slam, SRO","PE",10,0]
["Gasdisponering, Konstruktioner","PE",60,0]
["Gasdisponering, Mek/EL","PE",20,0]
["Gasdisponering, SRO","PE",10,0]
["Gasdisponering - elproduktionsanlæg, Konstruktioner","PE",60,0]
["Gasdisponering - elproduktionsanlæg, Mek/EL","PE",20,0]
["Gasdisponering - elproduktionsanlæg, SRO","PE",10,0]
["Slutafvanding, slam - lavteknologisk (slambede), Konstruktioner","PE",60,0]
["Slutafvanding, slam - lavteknologisk (slambede), Mek/EL","PE",20,0]
["Slutafvanding, slam - lavteknologisk (slambede), SRO","PE",10,0]
["Slutafvanding, slam - højteknologisk (centrifuger), Konstruktioner","PE",60,0]
["Slutafvanding, slam - højteknologisk (centrifuger), Mek/El","PE",20,0]
["Slutafvanding, slam - højteknologisk (centrifuger), SRO","PE",10,0]
["Renseanlæg >= 5.000 PE, Slamdisponering"]
["Slutdisponering, slam - lavteknologisk (slammineralisering), Konstruktioner","PE",60,0]
["Slutdisponering, slam - lavteknologisk (slammineralisering), Mek/EL","PE",20,0]
["Slutdisponering, slam - lavteknologisk (slammineralisering), SRO","PE",10,0]
["Slutdisponering, slam - højteknologisk (slamtørring), Konstruktioner","PE",60,0]
["Slutdisponering, slam - højteknologisk (slamtørring), Mek/EL","PE",20,0]
["Slutdisponering, slam - højteknologisk (slamtørring), SRO","PE",10,0]
["Slutdisponering, slam - højteknologisk (slamtørring og -forbrænding), Konstruktioner","PE",60,0]
["Slutdisponering, slam - højteknologisk (slamtørring og -forbrænding), Mek/EL","PE",20,0]
["Slutdisponering, slam - højteknologisk (slamtørring og -forbrænding), SRO","PE",10,0]
["Mindre renseanlæg"]
["Mindre renseanlæg < 5.000 PE uden mulighed for opdeling","PE",40,0]
["Renseanlæg >= 5.000 PE, Vandbehandling"]
["Indløb med riste, Konstruktioner","PE",60,0]
["Indløb med riste, Mek/EL","PE",20,0]
["Indløb med riste, SRO","PE",10,0]
["Sand- og fedtfang, Kontruktioner","PE",60,0]
["Sand- og fedtfang, Mek/EL","PE",20,0]
["Sand- og fedtfang, SRO","PE",10,0]
["Forklaring, Konstruktioner","PE",60,0]
["Forklaring, Mek/EL","PE",20,0]
["Forklaring, SRO","PE",10,0]
["Beluftningstanke, Konstruktioner","PE",60,0]
["Beluftningstanke, Mek/EL","PE",20,0]
["Beluftningstanke, SRO","PE",10,0]
["Efterklaringstanke, Konstruktioner","PE",60,0]
["Efterklaringstanke, Mek/El","PE",20,0]
["Efterklaringstanke, SRO","PE",10,0]
["Efterbehandlingsanlæg (sandfilter), Konstruktioner","PE",60,0]
["Efterbehandlingsanlæg (sandfilter), Mek/EL","PE",20,0]
["Efterbehandlingsanlæg (sandfilter), SRO","PE",10,0]
["Renseanlæg >= 5.000 PE, Slambehandling"]
["Forafvanding, slam, Konstruktion","PE",60,0]
["Forafvanding, slam, Mek/EL","PE",20,0]
["Forafvanding, slam, SRO","PE",10,0]
["Rådnetanke, slam, Konstruktioner","PE",60,0]
["Rådnetanke, slam, Mek/EL","PE",20,0]
["Rådnetanke, slam, SRO","PE",10,0]
["Gasdisponering, Konstruktioner","PE",60,0]
["Gasdisponering, Mek/EL","PE",20,0]
["Gasdisponering, SRO","PE",10,0]
["Gasdisponering - elproduktionsanlæg, Konstruktioner","PE",60,0]
["Gasdisponering - elproduktionsanlæg, Mek/EL","PE",20,0]
["Gasdisponering - elproduktionsanlæg, SRO","PE",10,0]
["Slutafvanding, slam - lavteknologisk (slambede), Konstruktioner","PE",60,0]
["Slutafvanding, slam - lavteknologisk (slambede), Mek/EL","PE",20,0]
["Slutafvanding, slam - lavteknologisk (slambede), SRO","PE",10,0]
["Slutafvanding, slam - højteknologisk (centrifuger), Konstruktioner","PE",60,0]
["Slutafvanding, slam - højteknologisk (centrifuger), Mek/El","PE",20,0]
["Slutafvanding, slam - højteknologisk (centrifuger), SRO","PE",10,0]
["Renseanlæg >= 5.000 PE, Slamdisponering"]
["Slutdisponering, slam - lavteknologisk (slammineralisering), Konstruktioner","PE",60,0]
["Slutdisponering, slam - lavteknologisk (slammineralisering), Mek/EL","PE",20,0]
["Slutdisponering, slam - lavteknologisk (slammineralisering), SRO","PE",10,0]
["Slutdisponering, slam - højteknologisk (slamtørring), Konstruktioner","PE",60,0]
["Slutdisponering, slam - højteknologisk (slamtørring), Mek/EL","PE",20,0]
["Slutdisponering, slam - højteknologisk (slamtørring), SRO","PE",10,0]
["Slutdisponering, slam - højteknologisk (slamtørring og -forbrænding), Konstruktioner","PE",60,0]
["Slutdisponering, slam - højteknologisk (slamtørring og -forbrænding), Mek/EL","PE",20,0]
["Slutdisponering, slam - højteknologisk (slamtørring og -forbrænding), SRO","PE",10,0]

{"sheet":"Distributionsanlæg","index":1,"n_rows":322,"n_cols":6,"rows_kept":322,"cut":false,"hidden":false,"merged":[[0,5,1,5],[0,0,1,0],[0,1,1,1],[0,2,1,2],[0,3,1,3],[0,4,1,4]]}
["Distributionsanlæg","Enhed","Standard-levetid","Samlet mængde per 31/12-2014","Samlet mængde per 31/12-2015","Bemærk-ninger"]
[]
["Ledningsnet - Land"]
["Ledningsnet ≤ Ø 200 mm ","meter",75,310737,{"$f":"D4","v":310737}]
["Ø 200 mm < Ledningsnet ≤ Ø 500 mm ","meter",75,123505,{"$f":"D5+460","v":123965}]
["Ø 500 mm < Ledningsnet ≤ Ø 800 mm","meter",75,17444,{"$f":"D6","v":17444}]
["Ø 800 mm < Ledningsnet ≤ Ø 1000 mm","meter",75,4469,4469]
["Ø 1000 mm < Ledningsnet ≤ Ø 1200 mm","meter",75,2149,2149]
["Ø 1200 mm < Ledningsnet ≤ Ø 1600 mm","meter",75,815,815]
["Ledningsnet > Ø 1600 mm (rørbassiner og transportledninger)","meter",75,0,0]
["Strømpeforing ≤ Ø 200 mm","meter",50,{"$f":"403-D25","v":318},318]
["Strømpeforing Ø 200 mm < Ledningsnet ≤ Ø 500 mm","meter",50,{"$f":"943-D26","v":669},669]
["Strømpeforing Ø 500 mm < Ledningsnet ≤ Ø 800 mm","meter",50,{"$f":"835-D27","v":411},411]
["Strømpeforing Ø 800 mm < Ledningsnet ≤ Ø 1000 mm","meter",50,{"$f":"142-D28","v":42},42]
["Strømpeforing Ø 1000 mm < Ledningsnet ≤ Ø 1200 mm","meter",50,0,0]
["Strømpeforing Ø 1200 mm < Ledningsnet ≤ Ø 1600 mm","meter",50,0,0]
["Ledningsnet - By"]
["Ledningsnet ≤ Ø 200 mm ","meter",75,293501,{"$f":"D18+504","v":294005}]
["Ø 200 mm < Ledningsnet ≤ Ø 500 mm ","meter",75,159916,{"$f":"D19+315","v":160231}]
["Ø 500 mm < Ledningsnet ≤ Ø 800 mm","meter",75,30142,{"$f":"D20+195","v":30337}]
["Ø 800 mm < Ledningsnet ≤ Ø 1000 mm","meter",75,10069,{"$f":"D21","v":10069}]
["Ø 1000 mm < Ledningsnet ≤ Ø 1200 mm","meter",75,1135,1135]
["Ø 1200 mm < Ledningsnet ≤ Ø 1600 mm","meter",75,2235,2235]
["Ledningsnet > Ø 1600 mm (rørbassiner og transportledninger)","meter",75,0,0]
["Strømpeforing ≤ Ø 200 mm","meter",50,85,85]
["Strømpeforing Ø 200 mm < Ledningsnet ≤ Ø 500 mm","meter",50,274,274]
["Strømpeforing Ø 500 mm < Ledningsnet ≤ Ø 800 mm","meter",50,424,424]
["Strømpeforing Ø 800 mm < Ledningsnet ≤ Ø 1000 mm","meter",50,100,100]
["Strømpeforing Ø 1000 mm < Ledningsnet ≤ Ø 1200 mm","meter",50,0,0]
["Strømpeforing Ø 1200 mm < Ledningsnet ≤ Ø 1600 mm","meter",50,0,0]
["Ledningsnet - City"]
["Ledningsnet ≤ Ø 200 mm ","meter",75,0]
["Ø 200 mm < Ledningsnet ≤ Ø 500 mm ","meter",75,0]
["Ø 500 mm < Ledningsnet ≤ Ø 800 mm","meter",75,0]
["Ø 800 mm < Ledningsnet ≤ Ø 1000 mm","meter",75,0]
["Ø 1000 mm < Ledningsnet ≤ Ø 1200 mm","meter",75,0]
["Ø 1200 mm < Ledningsnet ≤ Ø 1600 mm","meter",75,0]
["Ledningsnet > Ø 1600 mm (rørbassiner og transportledninger)","meter",75,0]
["Strømpeforing ≤ Ø 200 mm","meter",50,0]
["Strømpeforing Ø 200 mm < Ledningsnet ≤ Ø 500 mm","meter",50,0]
["Strømpeforing Ø 500 mm < Ledningsnet ≤ Ø 800 mm","meter",50,0]
["Strømpeforing Ø 800 mm < Ledningsnet ≤ Ø 1000 mm","meter",50,0]
["Strømpeforing Ø 1000 mm < Ledningsnet ≤ Ø 1200 mm","meter",50,0]
["Strømpeforing Ø 1200 mm < Ledningsnet ≤ Ø 1600 mm","meter",50,0]
["Ledningsnet - Indre city"]
["Ledningsnet ≤ Ø 200 mm ","meter",75,0]
["Ø 200 mm < Ledningsnet ≤ Ø 500 mm ","meter",75,0]
["Ø 500 mm < Ledningsnet ≤ Ø 800 mm","meter",75,0]
["Ø 800 mm < Ledningsnet ≤ Ø 1000 mm","meter",75,0]
["Ø 1000 mm < Ledningsnet ≤ Ø 1200 mm","meter",75,0]
["Ø 1200 mm < Ledningsnet ≤ Ø 1600 mm","meter",75,0]
["Ledningsnet > Ø 1600 mm (rørbassiner og transportledninger)","meter",75,0]
["Strømpeforing ≤ Ø 200 mm","meter",50,0]
["Strømpeforing Ø 200 mm < Ledningsnet ≤ Ø 500 mm","meter",50,0]
["Strømpeforing Ø 500 mm < Ledningsnet ≤ Ø 800 mm","meter",50,0]
["Strømpeforing Ø 800 mm < Ledningsnet ≤ Ø 1000 mm","meter",50,0]
["Strømpeforing Ø 1000 mm < Ledningsnet ≤ Ø 1200 mm","meter",50,0]
["Strømpeforing Ø 1200 mm < Ledningsnet ≤ Ø 1600 mm","meter",50,0]
["Brønde og stik, ledningsnet - Land"]
["Brønde","stk.",75,6136,{"$f":"D60","v":6136}]
["Stik","stk.",75,3352,{"$f":"D61","v":3352}]
["Brønde og stik, ledningsnet - By"]
["Brønde","stk.",75,8333,8459]
["Stik","stk.",75,26647,{"$f":"D64","v":26647}]
["Brønde og stik, ledningsnet - City"]
["Brønde","stk.",75,0]
["Stik","stk.",75,0]
["Brønde og stik, ledningsnet - Indre city"]
["Brønde","stk.",75,0]
["Stik","stk.",75,0]
["Små pumpestationer inkl. SRO-anlæg - Land"]
["Tryksatte minipumpestationer (husstandssystemer)","stk.",30,4,0]
["Pumpestationer i brønde (< 6,25 m2), Konstruktioner","stk.",50,107,{"$f":"D73","v":107}]
["Pumpestationer i brønde (< 6,25 m2), Mek/EL","stk.",20,107,{"$f":"D74","v":107}]
["Pumpestationer i brønde (< 6,25 m2), SRO","stk.",10,107,107]
["Pumpestationer m. overbygning (< 20 m2), Konstruktioner","stk.",50,19,19]
["Pumpestationer m. overbygning (< 20 m2), Mek/EL","stk.",20,19,19]
["Pumpestationer m. overbygning (< 20 m2), SRO","stk.",10,19,19]
["Pumpestationer i underjordiske bygværker (<50 m2), Konstruktioner","stk.",50,0,0]
["Pumpestationer i underjordiske bygværker (<50 m2), Mek/El","stk.",20,0,0]
["Pumpestationer i underjordiske bygværker (<50 m2), SRO","stk.",10,0,0]
["Små pumpestationer inkl. SRO-anlæg - By"]
["Tryksatte minipumpestationer (husstandssystemer)","stk.",30,7,6]
["Pumpestationer i brønde (< 6,25 m2), Konstruktioner","stk.",50,80,78]
["Pumpestationer i brønde (< 6,25 m2), Mek/EL","stk.",20,80,78]
["Pumpestationer i brønde (< 6,25 m2), SRO","stk.",10,80,78]
["Pumpestationer m. overbygning (< 20 m2), Konstruktioner","stk.",50,5,{"$f":"D87","v":5}]
["Pumpestationer m. overbygning (< 20 m2), Mek/EL","stk.",20,5,5]
["Pumpestationer m. overbygning (< 20 m2), SRO","stk.",10,5,5]
["Pumpestationer i underjordiske bygværker (<50 m2), Konstruktioner","stk.",50,0,0]
["Pumpestationer i underjordiske bygværker (<50 m2), Mek/El","stk.",20,0,0]
["Pumpestationer i underjordiske bygværker (<50 m2), SRO","stk.",10,0,0]
["Små pumpestationer inkl. SRO-anlæg - City"]
["Tryksatte minipumpestationer (husstandssystemer)","stk.",30,0]
["Pumpestationer i brønde (< 6,25 m2), Konstruktioner","stk.",50,0]
["Pumpestationer i brønde (< 6,25 m2), Mek/EL","stk.",20,0]
["Pumpestationer i brønde (< 6,25 m2), SRO","stk.",10,0]
["Pumpestationer m. overbygning (< 20 m2), Konstruktioner","stk.",50,0]
["Pumpestationer m. overbygning (< 20 m2), Mek/EL","stk.",20,0]
["Pumpestationer m. overbygning (< 20 m2), SRO","stk.",10,0]
["Pumpestationer i underjordiske bygværker (<50 m2), Konstruktioner","stk.",50,0]
["Pumpestationer i underjordiske bygværker (<50 m2), Mek/El","stk.",20,0]
["Pumpestationer i underjordiske bygværker (<50 m2), SRO","stk.",10,0]
["Små pumpestationer inkl. SRO-anlæg - Indre city"]
["Tryksatte minipumpestationer (husstandssystemer)","stk.",30,0]
["Pumpestationer i brønde (< 6,25 m2), Konstruktioner","stk.",50,0]
["Pumpestationer i brønde (< 6,25 m2), Mek/EL","stk.",20,0]
["Pumpestationer i brønde (< 6,25 m2), SRO","stk.",10,0]
["Pumpestationer m. overbygning (< 20 m2), Konstruktioner","stk.",50,0]
["Pumpestationer m. overbygning (< 20 m2), Mek/EL","stk.",20,0]
["Pumpestationer m. overbygning (< 20 m2), SRO","stk.",10,0]
["Pumpestationer i underjordiske bygværker (<50 m2), Konstruktioner","stk.",50,0]
["Pumpestationer i underjordiske bygværker (<50 m2), Mek/El","stk.",20,0]
["Pumpestationer i underjordiske bygværker (<50 m2), SRO","stk.",10,0]
["Store pumpestationer: inkl. SRO-anlæg - Land"]
["Kælder","m2",75,0,{"$f":"D116","v":0}]
["Pumpeinstallation Miljøklasse A (100-300 l/s) - Mek/EL","stk.",20,8,{"$f":"D117","v":8}]
["Pumpeinstallation Miljøklasse A (100-300 l/s) - SRO","stk.",10,8,8]
["Pumpeinstallation Miljøklasse A (300-600 l/s) - Mek/EL","stk.",20,8,8]
["Pumpeinstallation Miljøklasse A (300-600 l/s) - SRO","stk.",10,0,0]
["Pumpeinstallation Miljøklasse A (600-1.000 l/s) - Mek/EL","stk.",20,0,0]
["Pumpeinstallation Miljøklasse A (600-1.000 l/s) - SRO","stk.",10,0,0]
["Pumpeinstallation Miljøklasse A (1.000-1.500 l/s) - Mek/EL","stk.",20,0,0]
["Pumpeinstallation Miljøklasse A (1.000-1.500 l/s) - SRO","stk.",10,0,0]
["Pumpeinstallation Miljøklasse B (100-300 l/s) - Mek/EL","stk.",20,0,0]
["Pumpeinstallation Miljøklasse B (100-300 l/s) - SRO","stk.",10,0,0]
["Pumpeinstallation Miljøklasse B (300-600 l/s) - Mek/EL","stk.",20,0,0]
["Pumpeinstallation Miljøklasse B (300-600 l/s) - SRO","stk.",10,0,0]
["Pumpeinstallation Miljøklasse B (600-1.000 l/s) - Mek/EL","stk.",20,0,0]
["Pumpeinstallation Miljøklasse B (600-1.000 l/s) - SRO","stk.",10,0,0]
["Pumpeinstallation Miljøklasse B (1.000-1.500 l/s) - Mek/EL","stk.",20,0,0]
["Pumpeinstallation Miljøklasse B (1.000-1.500 l/s) - SRO","stk.",10,0,0]
["Overbygning","m2",75,5,5]
["Store pumpestationer: inkl. SRO-anlæg - By"]
["Kælder","m2",75,2,{"$f":"D135","v":2}]
["Pumpeinstallation Miljøklasse A (100-300 l/s) - Mek/EL","stk.",20,4,{"$f":"D136","v":4}]
["Pumpeinstallation Miljøklasse A (100-300 l/s) - SRO","stk.",10,4,4]
["Pumpeinstallation Miljøklasse A (300-600 l/s) - Mek/EL","stk.",20,4,4]
["Pumpeinstallation Miljøklasse A (300-600 l/s) - SRO","stk.",10,0,0]
["Pumpeinstallation Miljøklasse A (600-1.000 l/s) - Mek/EL","stk.",20,0,0]
["Pumpeinstallation Miljøklasse A (600-1.000 l/s) - SRO","stk.",10,0,0]
["Pumpeinstallation Miljøklasse A (1.000-1.500 l/s) - Mek/EL","stk.",20,0,0]
["Pumpeinstallation Miljøklasse A (1.000-1.500 l/s) - SRO","stk.",10,0,0]
["Pumpeinstallation Miljøklasse B (100-300 l/s) - Mek/EL","stk.",20,0,0]
["Pumpeinstallation Miljøklasse B (100-300 l/s) - SRO","stk.",10,0,0]
["Pumpeinstallation Miljøklasse B (300-600 l/s) - Mek/EL","stk.",20,0,0]
["Pumpeinstallation Miljøklasse B (300-600 l/s) - SRO","stk.",10,0,0]
["Pumpeinstallation Miljøklasse B (600-1.000 l/s) - Mek/EL","stk.",20,0,0]
["Pumpeinstallation Miljøklasse B (600-1.000 l/s) - SRO","stk.",10,0,0]
["Pumpeinstallation Miljøklasse B (1.000-1.500 l/s) - Mek/EL","stk.",20,0,0]
["Pumpeinstallation Miljøklasse B (1.000-1.500 l/s) - SRO","stk.",10,0,0]
["Overbygning ","m2",75,4,4]
["Store pumpestationer: inkl. SRO-anlæg - City"]
["Kælder","m2",75,0]
["Pumpeinstallation Miljøklasse A (100-300 l/s) - Mek/EL","stk.",20,0]
["Pumpeinstallation Miljøklasse A (100-300 l/s) - SRO","stk.",10,0]
["Pumpeinstallation Miljøklasse A (300-600 l/s) - Mek/EL","stk.",20,0]
["Pumpeinstallation Miljøklasse A (300-600 l/s) - SRO","stk.",10,0]
["Pumpeinstallation Miljøklasse A (600-1.000 l/s) - Mek/EL","stk.",20,0]
["Pumpeinstallation Miljøklasse A (600-1.000 l/s) - SRO","stk.",10,0]
["Pumpeinstallation Miljøklasse A (1.000-1.500 l/s) - Mek/EL","stk.",20,0]
["Pumpeinstallation Miljøklasse A (1.000-1.500 l/s) - SRO","stk.",10,0]
["Pumpeinstallation Miljøklasse B (100-300 l/s) - Mek/EL","stk.",20,0]
["Pumpeinstallation Miljøklasse B (100-300 l/s) - SRO","stk.",10,0]
["Pumpeinstallation Miljøklasse B (300-600 l/s) - Mek/EL","stk.",20,0]
["Pumpeinstallation Miljøklasse B (300-600 l/s) - SRO","stk.",10,0]
["Pumpeinstallation Miljøklasse B (600-1.000 l/s) - Mek/EL","stk.",20,0]
["Pumpeinstallation Miljøklasse B (600-1.000 l/s) - SRO","stk.",10,0]
["Pumpeinstallation Miljøklasse B (1.000-1.500 l/s) - Mek/EL","stk.",20,0]
["Pumpeinstallation Miljøklasse B (1.000-1.500 l/s) - SRO","stk.",10,0]
["Overbygning ","m2",75,0]
["Store pumpestationer: inkl. SRO-anlæg - Indre city"]
["Kælder","m2",75,0]
["Pumpeinstallation Miljøklasse A (100-300 l/s) - Mek/EL","stk.",20,0]
["Pumpeinstallation Miljøklasse A (100-300 l/s) - SRO","stk.",10,0]
["Pumpeinstallation Miljøklasse A (300-600 l/s) - Mek/EL","stk.",20,0]
["Pumpeinstallation Miljøklasse A (300-600 l/s) - SRO","stk.",10,0]
["Pumpeinstallation Miljøklasse A (600-1.000 l/s) - Mek/EL","stk.",20,0]
["Pumpeinstallation Miljøklasse A (600-1.000 l/s) - SRO","stk.",10,0]
["Pumpeinstallation Miljøklasse A (1.000-1.500 l/s) - Mek/EL","stk.",20,0]
["Pumpeinstallation Miljøklasse A (1.000-1.500 l/s) - SRO","stk.",10,0]
["Pumpeinstallation Miljøklasse B (100-300 l/s) - Mek/EL","stk.",20,0]
["Pumpeinstallation Miljøklasse B (100-300 l/s) - SRO","stk.",10,0]
["Pumpeinstallation Miljøklasse B (300-600 l/s) - Mek/EL","stk.",20,0]
["Pumpeinstallation Miljøklasse B (300-600 l/s) - SRO","stk.",10,0]
["Pumpeinstallation Miljøklasse B (600-1.000 l/s) - Mek/EL","stk.",20,0]
["Pumpeinstallation Miljøklasse B (600-1.000 l/s) - SRO","stk.",10,0]
["Pumpeinstallation Miljøklasse B (1.000-1.500 l/s) - Mek/EL","stk.",20,0]
["Pumpeinstallation Miljøklasse B (1.000-1.500 l/s) - SRO","stk.",10,0]
["Overbygning","m2",75,0]
["Overløbsbygværker - Land"]
["Kælder (< 7 m2) ","stk.",75,0,{"$f":"D192","v":0}]
["Kælder (7 - 20 m2) ","m2",75,0,{"$f":"D193","v":0}]
["Kælder (20 - 30 m2)","m2",75,0,0]
["Installationer \"ingen eller faste riste\" (mindre end 7 m2)","stk.",20,20,20]
["Installationer \"mekaniske riste og SRO\" Miljøklasse A. (7-20 m2) - Mek/EL","stk.",20,0,0]
["Installationer \"mekaniske riste og SRO\" Miljøklasse A. (7-20 m2) - SRO","stk.",10,0,0]
["Installationer \"mekaniske riste og SRO\" Miljøklasse A. (20-30 m2) - Mek/EL","stk.",20,0,0]
["Installationer \"mekaniske riste og SRO\" Miljøklasse A. (20-30 m2) - SRO","stk.",10,0,0]
["Installationer \"mekaniske riste og SRO\" Miljøklasse B. (7-20 m2) - Mek/EL","stk.",20,0,0]
["Installationer \"mekaniske riste og SRO\" Miljøklasse B. (7-20 m2) - SRO","stk.",10,0,0]
["Installationer \"mekaniske riste og SRO\" Miljøklasse B. (20-30 m2) - Mek/EL","stk.",20,0,0]
["Installationer \"mekaniske riste og SRO\" Miljøklasse B. (20-30 m2) - SRO","stk.",10,0,0]
["Overbygning","stk.",75,0,0]
["Overløbsbygværker - By"]
["Kælder (< 7 m2) ","stk.",75,0,{"$f":"D206","v":0}]
["Kælder (7 - 20 m2) ","m2",75,0,{"$f":"D207","v":0}]
["Kælder (20 - 30 m2)","m2",75,0,0]
["Installationer \"ingen eller faste riste\" (mindre end 7 m2)","stk.",20,31,31]
["Installationer \"mekaniske riste og SRO\" Miljøklasse A. (7-20 m2) - Mek/EL","stk.",20,0,0]
["Installationer \"mekaniske riste og SRO\" Miljøklasse A. (7-20 m2) - SRO","stk.",10,0,0]
["Installationer \"mekaniske riste og SRO\" Miljøklasse A. (20-30 m2) - Mek/EL","stk.",20,0,0]
["Installationer \"mekaniske riste og SRO\" Miljøklasse A. (20-30 m2) - SRO","stk.",10,0,0]
["Installationer \"mekaniske riste og SRO\" Miljøklasse B. (7-20 m2) - Mek/EL","stk.",20,0,0]
["Installationer \"mekaniske riste og SRO\" Miljøklasse B. (7-20 m2) - SRO","stk.",10,0,0]
["Installationer \"mekaniske riste og SRO\" Miljøklasse B. (20-30 m2) - Mek/EL","stk.",20,0,0]
["Installationer \"mekaniske riste og SRO\" Miljøklasse B. (20-30 m2) - SRO","stk.",10,0,0]
["Overbygning","stk.",75,0,0]
["Overløbsbygværker - City"]
["Kælder (< 7 m2) ","stk.",75,0]
["Kælder (7 - 20 m2) ","m2",75,0]
["Kælder (20 - 30 m2)","m2",75,0]
["Installationer \"ingen eller faste riste\" (mindre end 7 m2)","stk.",20,0]
["Installationer \"mekaniske riste og SRO\" Miljøklasse A. (7-20 m2) - Mek/EL","stk.",20,0]
["Installationer \"mekaniske riste og SRO\" Miljøklasse A. (7-20 m2) - SRO","stk.",10,0]
["Installationer \"mekaniske riste og SRO\" Miljøklasse A. (20-30 m2) - Mek/EL","stk.",20,0]
["Installationer \"mekaniske riste og SRO\" Miljøklasse A. (20-30 m2) - SRO","stk.",10,0]
["Installationer \"mekaniske riste og SRO\" Miljøklasse B. (7-20 m2) - Mek/EL","stk.",20,0]
["Installationer \"mekaniske riste og SRO\" Miljøklasse B. (7-20 m2) - SRO","stk.",10,0]
["Installationer \"mekaniske riste og SRO\" Miljøklasse B. (20-30 m2) - Mek/EL","stk.",20,0]
["Installationer \"mekaniske riste og SRO\" Miljøklasse B. (20-30 m2) - SRO","stk.",10,0]
["Overbygning (efter beliggenhed) ","stk.",75,0]
["Overløbsbygværker - Indre city"]
["Kælder (< 7 m2) ","stk.",75,0]
["Kælder (7 - 20 m2) ","m2",75,0]
["Kælder (20 - 30 m2)","m2",75,0]
["Installationer \"ingen eller faste riste\" (mindre end 7 m2)","stk.",20,0]
["Installationer \"mekaniske riste og SRO\" Miljøklasse A. (7-20 m2) - Mek/EL","stk.",20,0]
["Installationer \"mekaniske riste og SRO\" Miljøklasse A. (7-20 m2) - SRO","stk.",10,0]
["Installationer \"mekaniske riste og SRO\" Miljøklasse A. (20-30 m2) - Mek/EL","stk.",20,0]
["Installationer \"mekaniske riste og SRO\" Miljøklasse A. (20-30 m2) - SRO","stk.",10,0]
["Installationer \"mekaniske riste og SRO\" Miljøklasse B. (7-20 m2) - Mek/EL","stk.",20,0]
["Installationer \"mekaniske riste og SRO\" Miljøklasse B. (7-20 m2) - SRO","stk.",10,0]
["Installationer \"mekaniske riste og SRO\" Miljøklasse B. (20-30 m2) - Mek/EL","stk.",20,0]
["Installationer \"mekaniske riste og SRO\" Miljøklasse B. (20-30 m2) - SRO","stk.",10,0]
["Overbygning","stk.",75,0]
["Forsinkelsesbassiner - Land"]
["Forsinkelsesbassiner, lukkede uden automatisk rensning og SRO Miljøklasse B (mindre end 1.000 m3)","m³",50,3161,{"$f":"D248","v":3161}]
["Forsinkelsesbassiner, lukkede med automatisk rensning og SRO Miljøklasse A (500-1.000 m3) - Konstruktioner","m³",75,0,{"$f":"D249","v":0}]
["Forsinkelsesbassiner, lukkede med automatisk rensning og SRO Miljøklasse A (500-1.000 m3) - Mek/EL","m³",20,0,0]
["Forsinkelsesbassiner, lukkede med automatisk rensning og SRO Miljøklasse A (500-1.000 m3) - SRO ","m³",10,0,0]
["Forsinkelsesbassiner, lukkede med automatisk rensning og SRO Miljøklasse A (1.000-3.000 m3) - Konstruktioner","m³",75,0,0]
["Forsinkelsesbassiner, lukkede med automatisk rensning og SRO Miljøklasse A (1.000-3.000 m3) - Mek/EL","m³",20,0,0]
["Forsinkelsesbassiner, lukkede med automatisk rensning og SRO Miljøklasse A (1.000-3.000 m3) - SRO","m³",10,0,0]
["Forsinkelsesbassiner, lukkede med automatisk rensning og SRO Miljøklasse A (5.000-10.000 m3) - Konstruktionre","m³",75,0,0]
["Forsinkelsesbassiner, lukkede med automatisk rensning og SRO Miljøklasse A (5.000-10.000 m3) - Mek/EL","m³",20,0,0]
["Forsinkelsesbassiner, lukkede med automatisk rensning og SRO Miljøklasse A (5.000-10.000 m3) - SRO","m³",10,0,0]
["Forsinkelsesbassiner, lukkede med automatisk rensning og SRO Miljøklasse A (større end 10.000 m3) - Konstruktioner","m³",75,0,0]
["Forsinkelsesbassiner, lukkede med automatisk rensning og SRO Miljøklasse A (større end 10.000 m3) - Mek/EL","m³",20,0,0]
["Forsinkelsesbassiner, lukkede med automatisk rensning og SRO Miljøklasse A (større end 10.000 m3) - SRO","m³",10,0,0]
["Forsinkelsesbassiner - By"]
["Forsinkelsesbassiner, lukkede uden automatisk rensning og SRO Miljøklasse B (mindre end 1.000 m3)","m³",50,3296,{"$f":"D262","v":3296}]
["Forsinkelsesbassiner, lukkede med automatisk rensning og SRO Miljøklasse A (500-1.000 m3) - Konstruktioner","m³",75,0,{"$f":"D263","v":0}]
["Forsinkelsesbassiner, lukkede med automatisk rensning og SRO Miljøklasse A (500-1.000 m3) - Mek/EL","m³",20,0,0]
["Forsinkelsesbassiner, lukkede med automatisk rensning og SRO Miljøklasse A (500-1.000 m3) - SRO ","m³",10,0,0]
["Forsinkelsesbassiner, lukkede med automatisk rensning og SRO Miljøklasse A (1.000-3.000 m3) - Konstruktioner","m³",75,0,0]
["Forsinkelsesbassiner, lukkede med automatisk rensning og SRO Miljøklasse A (1.000-3.000 m3) - Mek/EL","m³",20,0,0]
["Forsinkelsesbassiner, lukkede med automatisk rensning og SRO Miljøklasse A (1.000-3.000 m3) - SRO","m³",10,0,0]
["Forsinkelsesbassiner, lukkede med automatisk rensning og SRO Miljøklasse A (5.000-10.000 m3) - Konstruktionre","m³",75,0,0]
["Forsinkelsesbassiner, lukkede med automatisk rensning og SRO Miljøklasse A (5.000-10.000 m3) - Mek/EL","m³",20,0,0]
["Forsinkelsesbassiner, lukkede med automatisk rensning og SRO Miljøklasse A (5.000-10.000 m3) - SRO","m³",10,0,0]
["Forsinkelsesbassiner, lukkede med automatisk rensning og SRO Miljøklasse A (større end 10.000 m3) - Konstruktioner","m³",75,0,0]
["Forsinkelsesbassiner, lukkede med automatisk rensning og SRO Miljøklasse A (større end 10.000 m3) - Mek/EL","m³",20,0,0]
["Forsinkelsesbassiner, lukkede med automatisk rensning og SRO Miljøklasse A (større end 10.000 m3) - SRO","m³",10,0,0]
["Forsinkelsesbassiner - City"]
["Forsinkelsesbassiner, lukkede uden automatisk rensning og SRO Miljøklasse B (mindre end 1.000 m3)","m³",50,0]
["Forsinkelsesbassiner, lukkede med automatisk rensning og SRO Miljøklasse A (500-1.000 m3) - Konstruktioner","m³",75,0]
["Forsinkelsesbassiner, lukkede med automatisk rensning og SRO Miljøklasse A (500-1.000 m3) - Mek/EL","m³",20,0]
["Forsinkelsesbassiner, lukkede med automatisk rensning og SRO Miljøklasse A (500-1.000 m3) - SRO ","m³",10,0]
["Forsinkelsesbassiner, lukkede med automatisk rensning og SRO Miljøklasse A (1.000-3.000 m3) - Konstruktioner","m³",75,0]
["Forsinkelsesbassiner, lukkede med automatisk rensning og SRO Miljøklasse A (1.000-3.000 m3) - Mek/EL","m³",20,0]
["Forsinkelsesbassiner, lukkede med automatisk rensning og SRO Miljøklasse A (1.000-3.000 m3) - SRO","m³",10,0]
["Forsinkelsesbassiner, lukkede med automatisk rensning og SRO Miljøklasse A (5.000-10.000 m3) - Konstruktionre","m³",75,0]
["Forsinkelsesbassiner, lukkede med automatisk rensning og SRO Miljøklasse A (5.000-10.000 m3) - Mek/EL","m³",20,0]
["Forsinkelsesbassiner, lukkede med automatisk rensning og SRO Miljøklasse A (5.000-10.000 m3) - SRO","m³",10,0]
["Forsinkelsesbassiner, lukkede med automatisk rensning og SRO Miljøklasse A (større end 10.000 m3) - Konstruktioner","m³",75,0]
["Forsinkelsesbassiner, lukkede med automatisk rensning og SRO Miljøklasse A (større end 10.000 m3) - Mek/EL","m³",20,0]
["Forsinkelsesbassiner, lukkede med automatisk rensning og SRO Miljøklasse A (større end 10.000 m3) - SRO","m³",10,0]
["Forsinkelsesbassiner - Indre city"]
["Forsinkelsesbassiner, lukkede uden automatisk rensning og SRO Miljøklasse B (mindre end 1.000 m3)","m³",50,0]
["Forsinkelsesbassiner, lukkede med automatisk rensning og SRO Miljøklasse A (500-1.000 m3) - Konstruktioner","m³",75,0]
["Forsinkelsesbassiner, lukkede med automatisk rensning og SRO Miljøklasse A (500-1.000 m3) - Mek/EL","m³",20,0]
["Forsinkelsesbassiner, lukkede med automatisk rensning og SRO Miljøklasse A (500-1.000 m3) - SRO ","m³",10,0]
["Forsinkelsesbassiner, lukkede med automatisk rensning og SRO Miljøklasse A (1.000-3.000 m3) - Konstruktioner","m³",75,0]
["Forsinkelsesbassiner, lukkede med automatisk rensning og SRO Miljøklasse A (1.000-3.000 m3) - Mek/EL","m³",20,0]
["Forsinkelsesbassiner, lukkede med automatisk rensning og SRO Miljøklasse A (1.000-3.000 m3) - SRO","m³",10,0]
["Forsinkelsesbassiner, lukkede med automatisk rensning og SRO Miljøklasse A (5.000-10.000 m3) - Konstruktionre","m³",75,0]
["Forsinkelsesbassiner, lukkede med automatisk rensning og SRO Miljøklasse A (5.000-10.000 m3) - Mek/EL","m³",20,0]
["Forsinkelsesbassiner, lukkede med automatisk rensning og SRO Miljøklasse A (5.000-10.000 m3) - SRO","m³",10,0]
["Forsinkelsesbassiner, lukkede med automatisk rensning og SRO Miljøklasse A (større end 10.000 m3) - Konstruktioner","m³",75,0]
["Forsinkelsesbassiner, lukkede med automatisk rensning og SRO Miljøklasse A (større end 10.000 m3) - Mek/EL","m³",20,0]
["Forsinkelsesbassiner, lukkede med automatisk rensning og SRO Miljøklasse A (større end 10.000 m3) - SRO","m³",10,0]
["Sparebassin/laguner - Land"]
["Jordbassin Klasse B","m³",50,0,{"$f":"D304","v":0}]
["Jordbassin Klasse A","m³",50,29289,{"$f":"D305","v":29289}]
["Indløb-/udløbsarrangement","stk.",75,15,15]
["Andre bygninger (tekniske installationer, målere mv.)","m2",75,0,0]
["Sparebassin/laguner - By"]
["Jordbassin Klasse B","m³",50,0,{"$f":"D309","v":0}]
["Jordbassin Klasse A","m³",50,18648,20048]
["Indløb-/udløbsarrangement","stk.",75,13,14]
["Andre bygninger (tekniske installationer, målere mv.)","m2",75,0,{"$f":"D312","v":0}]
["Sparebassin/laguner - City"]
["Jordbassin Klasse B","m³",50,0]
["Jordbassin Klasse A","m³",50,0]
["Indløb-/udløbsarrangement","stk.",75,0]
["Andre bygninger (tekniske installationer, målere mv.)","m2",75,0]
["Sparebassin/laguner  - Indre city"]
["Jordbassin Klasse B","m³",50,0]
["Jordbassin Klasse A","m³",50,0]
["Indløb-/udløbsarrangement","stk.",75,0]
["Andre bygninger (tekniske installationer, målere mv.)","m2",75,0]

{"sheet":"Fællesfunktionsanlæg","index":2,"n_rows":16,"n_cols":6,"rows_kept":16,"cut":false,"hidden":false,"merged":[[0,5,1,5],[0,0,1,0],[0,1,1,1],[0,2,1,2],[0,3,1,3],[0,4,1,4]]}
["Fællesfunktionsanlæg","Enhed","Standard-levetid","Samlet mængde per 31/12-2014","Samlet mængde per 31/12-2015","Bemærk-ninger"]
[]
[]
["Andre"]
["Administrationbygninger","m2",75,{"$f":"695+183+183+170+100","v":1331},1331]
["Arbejdsplads og kontor","stk.",5,12,12]
["Køretøjer, personbil","stk.",5,5,4]
["Køretøjer, små lastvogne (< 3.500 kg.)","stk.",5,2,2]
["Køretøjer, store lastvogne (> 3.500 kg.)","stk.",5,2,3]
["Køretøjer, entreprenørmaskiner","stk.",5,3,3]
["Slamsugere","stk.",5,0,0]
["Værksteder, garager","m2",75,{"$f":"194+120+100","v":414},414]
["Øvrige"]
["Solcelleanlæg","KWh",25,0]
["EDB, tablets og navigationsudstyr","stk.",5,0]
["Elektroniske kort","stk.",5,0]

{"sheet":"Drop downliste","index":3,"n_rows":13,"n_cols":11,"rows_kept":13,"cut":false,"hidden":true,"merged":[]}
[]
[null,"datakvalitet","Serviceselskab","Overheads","Infrastrukturomlægninger","Infrastruktur per år","år 1","år 2","år 3","år 4","år 5"]
[null,null,null,null,null,null,2010,2011,2012,2013,2014]
[null,1,"ja","Full-cost","ja",0.1]
[null,2,"nej","Direct-cost","nej",0.2]
[null,3,null,"Nøgletalsfordeling",null,0.3]
[null,null,null,"Activity based cost",null,0.4]
[null,null,null,"Andet",null,0.5]
[null,null,null,null,null,0.6]
[null,null,null,null,null,0.7]
[null,null,null,null,null,0.8]
[null,null,null,null,null,0.9]
[null,null,null,null,null,1]